fUSD/lending_fUSD_20260322
["ID","MTS","AMOUNT","RATE_DAILY","PERIOD"]
[408721310,1774170650453,-436.36242,0.00036288,30]
[408721311,1774170650462,-175.2048,0.000363,2]
[408721312,1774170650470,-887.34,0.000363,30]
[408721313,1774170650480,-1732.0,0.00036422,120]
[408721314,1774170650488,-436.36242,0.00036488,30]
[408721315,1774170650497,-3791.969,0.00036547,45]
[408721316,1774170650506,-3514.0,0.00036564,2]
[408721317,1774170650515,-1044.0,0.00036564,2]
[408721318,1774170650523,-6008.0,0.00036645,2]
[408721319,1774170650532,-415.0,0.00036645,2]
[408721320,1774170650540,-362.72905046,0.00036667,30]
[408721321,1774170650549,-436.36242,0.00036688,30]
[408721322,1774170650558,-1093.0,0.00036707,5]
[408721323,1774170650567,-2418.74,0.000368,2]
[408721324,1774170650576,-3300.0,0.000368,7]
[408721325,1774170650584,-500.0,0.0003687,120]
[408721326,1774170650593,-245.0,0.00036881,30]
[408721327,1774170650602,-436.36242,0.00036888,30]
[408721328,1774170650611,-150.0,0.00036952,2]
[408721329,1774170650619,-150.0,0.00036952,2]
[408721330,1774170650628,-277.15195125,0.00036999,10]
[408721331,1774170650637,-786.03,0.00037,30]
[408721332,1774170650646,-89652.69,0.00037,7]
[408721333,1774170650655,-436.36242,0.00037088,30]
[408721334,1774170650664,-1038.71,0.000372,30]
[408721335,1774170650673,-193.26486285,0.000372,120]
[408721336,1774170650682,-193.26486284,0.000372,120]
[408721337,1774170650691,-436.36242,0.00037288,30]
[408721338,1774170650699,-1705.84486496,0.0003747,99]
[408721339,1774170650708,-436.36242,0.00037488,30]
[408721340,1774170650717,-624.55,0.00037491,2]
[408721341,1774170650725,-1093.0,0.00037529,5]
[408721342,1774170650734,-509.0,0.00037542,120]
[408721343,1774170650743,-1461.03,0.000376,30]
[408721344,1774170650752,-541.77740645,0.00037653,100]
[408721345,1774170650760,-2811.6264977,0.00037685,2]
[408721346,1774170650769,-436.36242,0.00037688,30]
[408721347,1774170650778,-250.0,0.0003775,7]
[408721348,1774170650786,-250.0,0.0003775,7]
[408721349,1774170650795,-250.0,0.0003775,7]
[408721350,1774170650804,-434.33,0.000378,7]
[408721351,1774170650813,-245.0,0.00037881,30]
[408721352,1774170650822,-436.36242,0.00037888,30]
[408721353,1774170650831,-2000.0,0.000379,2]
[408721354,1774170650839,-183.5,0.00038014,120]
[408721355,1774170650848,-264.99,0.00038034,30]
[408721356,1774170650857,-810.57,0.00038034,30]
[408721357,1774170650866,-699.16,0.00038034,30]
[408721358,1774170650874,-436.36242,0.00038088,30]
[408721359,1774170650883,-305.51734344,0.000381,33]
[408721360,1774170650892,-887.34,0.000381,30]
[408721361,1774170650901,-2620.05338686,0.00038113,120]
[408721362,1774170650910,-340.10209675,0.00038113,120]
[408721363,1774170650919,-1433.51132897,0.00038113,120]
[408721364,1774170650928,-436.36242,0.00038288,30]
[408721365,1774170650938,-217.56047974,0.00038329,120]
[408721366,1774170650947,-1093.0,0.0003835,7]
[408721367,1774170650955,-151.0,0.00038356,120]
[408721368,1774170650964,-151.0,0.00038356,120]
[408721369,1774170650973,-436.36242,0.00038488,30]
[408721370,1774170650981,-1299.86828,0.000386,120]
[408721371,1774170650990,-500.0,0.00038603,120]
[408721372,1774170650999,-436.36242,0.00038688,30]
[408721373,1774170651008,-2418.74,0.000387,30]
[408721374,1774170651017,-519.0,0.0003875,23]
[408721375,1774170651026,-414.26,0.00038792,90]
[408721376,1774170651034,-245.0,0.00038881,30]
[408721377,1774170651043,-362.72905046,0.00038889,30]
[408721378,1774170651052,-786.03,0.000389,30]
[408721379,1774170651061,-162.0,0.00038983,11]
[408721380,1774170651070,-627.3586707,0.00038985,2]
[408721381,1774170651079,-1038.71,0.00039,30]
[408721382,1774170651088,-436.36242,0.00039088,30]
[408721383,1774170651097,-908.46,0.00039134,2]
[408721384,1774170651105,-302.82,0.00039134,2]
[408721385,1774170651114,-1093.0,0.00039171,7]
[408721386,1774170651128,-436.36242,0.00039288,30]
[408721387,1774170651136,-509.0,0.00039419,120]
[408721388,1774170651145,-436.36242,0.00039488,30]
[408721389,1774170651154,-40000.0,0.000395,120]
[408721390,1774170651164,-3514.0,0.00039564,2]
[408721391,1774170651173,-1044.0,0.00039564,2]
[408721392,1774170651182,-2543.178,0.00039645,2]
[408721393,1774170651192,-415.0,0.00039645,2]
[408721394,1774170651201,-624.55,0.00039654,2]
[408721395,1774170651210,-436.36242,0.00039688,30]
[408721396,1774170651218,-1990.0,0.00039726,120]
[408721397,1774170651227,-245.0,0.00039881,30]
[408721398,1774170651236,-436.36242,0.00039888,30]
[408721399,1774170651245,-157.57886898,0.000399,7]
[408721400,1774170651254,-161.0,0.00039943,11]
[408721401,1774170651262,-1093.0,0.00039992,7]
[408721402,1774170651271,-152.0,0.0004,120]
[408721403,1774170651280,-2002.0,0.0004,120]
[408721404,1774170651289,-158.0,0.0004,120]
[408721405,1774170651298,-887.34,0.0004,30]
[408721406,1774170651306,-232.08,0.0004,120]
[408721407,1774170651315,-979.16666667,0.0004,30]
[408721408,1774170651324,-6001.87647652,0.0004,4]
[408721409,1774170651332,-160.0,0.0004,30]
[408721410,1774170651341,-1990.0,0.0004,120]
[408721411,1774170651350,-436.36242,0.00040088,30]
[408721412,1774170651359,-1990.0,0.00040273,120]
[408721413,1774170651367,-436.36242,0.00040288,30]
[408721414,1774170651376,-235.22003134,0.00040313,2]
[408721415,1774170651385,-436.36242,0.00040488,30]
[408721416,1774170651394,-410.21452944,0.00040514,111]
[408721417,1774170651403,-1990.0,0.00040547,120]
[408721418,1774170651411,-436.36242,0.00040688,30]
[408721419,1774170651420,-2418.74,0.000407,30]
[408721420,1774170651429,-1093.0,0.00040814,30]
[408721421,1774170651438,-1990.0,0.00040821,120]
[408721422,1774170651447,-436.36242,0.00040888,30]
[408721423,1774170651456,-29013.0,0.0004095,60]
[408721424,1774170651465,-3344.70943506,0.00041,30]
[408721425,1774170651474,-786.03,0.00041,30]
[408721426,1774170651482,-3450.3,0.00041068,120]
[408721427,1774170651491,-1728.83411023,0.00041068,120]
[408721428,1774170651500,-518.65023307,0.00041068,120]
[408721429,1774170651509,-222.27867131,0.00041068,120]
[408721430,1774170651517,-436.36242,0.00041088,30]
[408721431,1774170651526,-1990.0,0.00041095,120]
[408721432,1774170651535,-250.0,0.00041096,2]
[408721433,1774170651543,-383.0,0.00041096,2]
[408721434,1774170651552,-350.0,0.00041096,2]
[408721435,1774170651561,-350.0,0.00041096,2]
[408721436,1774170651570,-227.0,0.00041096,2]
[408721437,1774170651579,-350.0,0.00041096,2]
[408721438,1774170651588,-350.0,0.00041096,2]
[408721439,1774170651597,-216.0,0.00041096,2]
[408721440,1774170651606,-300.0,0.00041096,2]
[408721441,1774170651615,-300.0,0.00041096,2]
[408721442,1774170651624,-253.0,0.00041096,2]
[408721443,1774170651633,-350.0,0.00041096,2]
[408721444,1774170651642,-350.0,0.00041096,2]
[408721445,1774170651650,-224.0,0.00041096,2]
[408721446,1774170651659,-300.0,0.00041096,2]
[408721447,1774170651668,-300.0,0.00041096,2]
[408721448,1774170651677,-170.0,0.00041096,2]
[408721449,1774170651686,-600.0,0.00041096,120]
[408721450,1774170651695,-1038.71,0.000411,30]
[408721451,1774170651704,-362.72905046,0.00041111,30]
[408721452,1774170651713,-1066.31725185,0.00041231,2]
[408721453,1774170651721,-436.36242,0.00041288,30]
[408721454,1774170651730,-1990.0,0.00041369,120]
[408721455,1774170651739,-509.0,0.0004139,120]
[408721456,1774170651748,-436.36242,0.00041488,30]
[408721457,1774170651757,-200.0,0.00041537,120]
[408721458,1774170651765,-2000.0,0.000416,2]
[408721459,1774170651774,-1093.0,0.00041635,30]
[408721460,1774170651783,-1990.0,0.00041643,120]
[408721461,1774170651901,-436.36242,0.00041688,30]
[408721462,1774170651910,-150.052,0.00041697,30]
[408721463,1774170651918,-163.559,0.00041707,30]
[408721464,1774170651927,-183.5,0.00041815,120]
[408721465,1774170651936,-624.55,0.00041817,30]
[408721466,1774170651946,-436.36242,0.00041888,30]
[408721467,1774170651955,-1990.0,0.00041917,120]
[408721468,1774170651963,-200.0,0.00041929,8]
[408721469,1774170651972,-400.0,0.00042,120]
[408721470,1774170651981,-434.33,0.00042,30]
[408721471,1774170651990,-1990.0,0.00042191,120]
[408721472,1774170651998,-182.1419,0.000423,2]
[408721473,1774170652007,-29013.0,0.000423,60]
[408721474,1774170652016,-1093.0,0.00042456,30]
[408721475,1774170652024,-1990.0,0.00042465,120]
[408721476,1774170652034,-250.0,0.00042469,30]
[408721477,1774170652043,-250.0,0.00042469,30]
[408721478,1774170652052,-250.0,0.00042469,30]
[408721479,1774170652061,-300.0,0.00042479,2]
[408721480,1774170652069,-300.0,0.00042479,2]
[408721481,1774170652078,-520.90741423,0.00042479,2]
[408721482,1774170652088,-307.59307592,0.00042479,2]
[408721483,1774170652097,-300.0,0.00042479,2]
[408721484,1774170652105,-300.0,0.00042479,2]
[408721485,1774170652114,-300.0,0.00042479,2]
[408721486,1774170652127,-417.11348177,0.00042479,2]
[408721487,1774170652136,-300.0,0.00042479,2]
[408721488,1774170652145,-300.0,0.00042479,2]
[408721489,1774170652153,-717.54642308,0.00042479,2]
[408721490,1774170652165,-300.0,0.00042479,2]
[408721491,1774170652174,-300.0,0.00042479,2]
[408721492,1774170652183,-1086.77526194,0.00042479,2]
[408721493,1774170652192,-300.0,0.00042479,2]
[408721494,1774170652201,-300.0,0.00042479,2]
[408721495,1774170652210,-300.0,0.00042479,2]
[408721496,1774170652219,-300.0,0.00042479,2]
[408721497,1774170652228,-300.0,0.00042479,2]
[408721498,1774170652237,-300.0,0.00042479,2]
[408721499,1774170652246,-300.0,0.00042479,2]
[408721500,1774170652255,-300.0,0.00042479,2]
[408721501,1774170652263,-300.0,0.00042479,2]
[408721502,1774170652272,-300.0,0.00042479,2]
[408721503,1774170652280,-300.0,0.00042479,2]
[408721504,1774170652289,-300.0,0.00042479,2]
[408721505,1774170652298,-300.0,0.00042479,2]
[408721506,1774170652306,-300.0,0.00042479,2]
[408721507,1774170652315,-301.000602,0.00042479,2]
[408721508,1774170652324,-300.0,0.00042479,2]
[408721509,1774170652333,-300.0,0.00042479,2]
[408721510,1774170652342,-600.11635329,0.00042479,2]
[408721511,1774170652350,-300.0,0.00042479,2]
[408721512,1774170652359,-300.0,0.00042479,2]
[408721513,1774170652368,-300.0,0.00042479,2]
[408721514,1774170652376,-300.0,0.00042479,2]
[408721515,1774170652385,-555.90105714,0.00042479,2]
[408721516,1774170652394,-300.0,0.00042479,2]
[408721517,1774170652403,-300.26795467,0.00042479,2]
[408721518,1774170652411,-300.0,0.00042479,2]
[408721519,1774170652421,-300.0,0.00042479,2]
[408721520,1774170652429,-1138.86212569,0.00042479,2]
[408721521,1774170652438,-307.35924896,0.00042479,2]
[408721522,1774170652447,-300.0,0.00042479,2]
[408721523,1774170652456,-858.24055709,0.00042479,2]
[408721524,1774170652466,-300.0,0.00042479,2]
[408721525,1774170652477,-300.0,0.00042479,2]
[408721526,1774170652486,-300.0,0.00042479,2]
[408721527,1774170652495,-300.0,0.00042479,2]
[408721528,1774170652503,-308.63412797,0.00042479,2]
[408721529,1774170652512,-300.0,0.00042479,2]
[408721530,1774170652521,-300.0,0.00042479,2]
[408721531,1774170652529,-300.0,0.00042479,2]
[408721532,1774170652538,-460.5100828,0.00042479,2]
[408721533,1774170652547,-300.0,0.00042479,2]
[408721534,1774170652556,-300.0,0.00042479,2]
[408721535,1774170652565,-300.0,0.00042479,2]
[408721536,1774170652574,-448.59580951,0.00042479,2]
[408721537,1774170652583,-300.0,0.00042479,2]
[408721538,1774170652591,-300.0,0.00042479,2]
[408721539,1774170652601,-302.71758979,0.00042479,2]
[408721540,1774170652610,-300.0,0.00042479,2]
[408721541,1774170652619,-300.0,0.00042479,2]
[408721542,1774170652628,-300.0,0.00042479,2]
[408721543,1774170652637,-520.90741423,0.00042479,2]
[408721544,1774170652646,-307.59307592,0.00042479,2]
[408721545,1774170652655,-300.0,0.00042479,2]
[408721546,1774170652664,-300.0,0.00042479,2]
[408721547,1774170652673,-300.0,0.00042479,2]
[408721548,1774170652681,-417.11348177,0.00042479,2]
[408721549,1774170652690,-300.0,0.00042479,2]
[408721550,1774170652699,-300.0,0.00042479,2]
[408721551,1774170652708,-382.5854075,0.00042479,2]
[408721552,1774170652717,-300.0,0.00042479,2]
[408721553,1774170652726,-300.0,0.00042479,2]
[408721554,1774170652734,-1086.77526194,0.00042479,2]
[408721555,1774170652744,-300.0,0.00042479,2]
[408721556,1774170652754,-300.0,0.00042479,2]
[408721557,1774170652764,-300.0,0.00042479,2]
[408721558,1774170652772,-300.0,0.00042479,2]
[408721559,1774170652781,-300.0,0.00042479,2]
[408721560,1774170652791,-300.0,0.00042479,2]
[408721561,1774170652800,-300.0,0.00042479,2]
[408721562,1774170652809,-300.0,0.00042479,2]
[408721563,1774170652818,-300.0,0.00042479,2]
[408721564,1774170652827,-300.0,0.00042479,2]
[408721565,1774170652836,-300.0,0.00042479,2]
[408721566,1774170652845,-300.0,0.00042479,2]
[408721567,1774170652854,-300.0,0.00042479,2]
[408721568,1774170652863,-300.0,0.00042479,2]
[408721569,1774170652872,-301.000602,0.00042479,2]
[408721570,1774170652881,-300.0,0.00042479,2]
[408721571,1774170652890,-300.0,0.00042479,2]
[408721572,1774170652898,-600.11635329,0.00042479,2]
[408721573,1774170652907,-300.0,0.00042479,2]
[408721574,1774170652916,-300.0,0.00042479,2]
[408721575,1774170652926,-300.0,0.00042479,2]
[408721576,1774170652935,-300.0,0.00042479,2]
[408721577,1774170652944,-555.90105714,0.00042479,2]
[408721578,1774170652953,-300.0,0.00042479,2]
[408721579,1774170652961,-300.3537239,0.00042479,2]
[408721580,1774170652970,-300.0,0.00042479,2]
[408721581,1774170652979,-300.0,0.00042479,2]
[408721582,1774170652987,-1138.86212569,0.00042479,2]
[408721583,1774170652996,-307.35924896,0.00042479,2]
[408721584,1774170653005,-300.0,0.00042479,2]
[408721585,1774170653014,-858.24055709,0.00042479,2]
[408721586,1774170653023,-300.0,0.00042479,2]
[408721587,1774170653032,-300.0,0.00042479,2]
[408721588,1774170653041,-300.0,0.00042479,2]
[408721589,1774170653050,-300.0,0.00042479,2]
[408721590,1774170653058,-308.63412797,0.00042479,2]
[408721591,1774170653067,-300.0,0.00042479,2]
[408721592,1774170653076,-300.0,0.00042479,2]
[408721593,1774170653084,-300.0,0.00042479,2]
[408721594,1774170653093,-460.5100828,0.00042479,2]
[408721595,1774170653102,-300.0,0.00042479,2]
[408721596,1774170653111,-300.0,0.00042479,2]
[408721597,1774170653123,-300.0,0.00042479,2]
[408721598,1774170653132,-448.59580951,0.00042479,2]
[408721599,1774170653141,-300.0,0.00042479,2]
[408721600,1774170653150,-300.0,0.00042479,2]
[408721601,1774170653159,-302.71758979,0.00042479,2]
[408721602,1774170653170,-300.0,0.00042479,2]
[408721603,1774170653178,-300.0,0.00042479,2]
[408721604,1774170653187,-300.0,0.00042479,2]
[408721605,1774170653198,-520.90741423,0.00042479,2]
[408721606,1774170653207,-307.59307592,0.00042479,2]
[408721607,1774170653216,-300.0,0.00042479,2]
[408721608,1774170653225,-300.0,0.00042479,2]
[408721609,1774170653234,-300.0,0.00042479,2]
[408721610,1774170653242,-417.11348177,0.00042479,2]
[408721611,1774170653251,-300.0,0.00042479,2]
[408721612,1774170653259,-300.0,0.00042479,2]
[408721613,1774170653268,-717.54642308,0.00042479,2]
[408721614,1774170653277,-300.0,0.00042479,2]
[408721615,1774170653286,-300.0,0.00042479,2]
[408721616,1774170653294,-1086.77526194,0.00042479,2]
[408721617,1774170653303,-300.0,0.00042479,2]
[408721618,1774170653312,-300.0,0.00042479,2]
[408721619,1774170653321,-300.0,0.00042479,2]
[408721620,1774170653330,-300.0,0.00042479,2]
[408721621,1774170653339,-300.0,0.00042479,2]
[408721622,1774170653348,-370.01483087,0.00042479,2]
[408721623,1774170653357,-300.0,0.00042479,2]
[408721624,1774170653366,-300.0,0.00042479,2]
[408721625,1774170653375,-300.0,0.00042479,2]
[408721626,1774170653384,-300.0,0.00042479,2]
[408721627,1774170653392,-300.0,0.00042479,2]
[408721628,1774170653401,-300.0,0.00042479,2]
[408721629,1774170653410,-300.0,0.00042479,2]
[408721630,1774170653419,-300.0,0.00042479,2]
[408721631,1774170653427,-300.0,0.00042479,2]
[408721632,1774170653436,-301.000602,0.00042479,2]
[408721633,1774170653445,-300.0,0.00042479,2]
[408721634,1774170653454,-300.0,0.00042479,2]
[408721635,1774170653463,-600.11635329,0.00042479,2]
[408721636,1774170653472,-300.0,0.00042479,2]
[408721637,1774170653481,-300.0,0.00042479,2]
[408721638,1774170653490,-300.0,0.00042479,2]
[408721639,1774170653499,-300.0,0.00042479,2]
[408721640,1774170653508,-555.90105714,0.00042479,2]
[408721641,1774170653517,-300.0,0.00042479,2]
[408721642,1774170653525,-300.35372389,0.00042479,2]
[408721643,1774170653534,-300.0,0.00042479,2]
[408721644,1774170653543,-300.0,0.00042479,120]
[408721645,1774170653552,-300.0,0.00042479,2]
[408721646,1774170653561,-1138.86212569,0.00042479,2]
[408721647,1774170653570,-307.35924896,0.00042479,2]
[408721648,1774170653579,-300.0,0.00042479,2]
[408721649,1774170653588,-858.24055709,0.00042479,2]
[408721650,1774170653596,-300.0,0.00042479,2]
[408721651,1774170653710,-300.0,0.00042479,2]
[408721652,1774170653720,-300.0,0.00042479,2]
[408721653,1774170653729,-300.0,0.00042479,2]
[408721654,1774170653738,-308.63412797,0.00042479,2]
[408721655,1774170653746,-300.0,0.00042479,2]
[408721656,1774170653755,-300.0,0.00042479,2]
[408721657,1774170653764,-300.0,0.00042479,2]
[408721658,1774170653774,-460.5100828,0.00042479,2]
[408721659,1774170653784,-300.0,0.00042479,2]
[408721660,1774170653794,-300.0,0.00042479,2]
[408721661,1774170653804,-300.0,0.00042479,2]
[408721662,1774170653814,-448.59580951,0.00042479,2]
[408721663,1774170653824,-300.0,0.00042479,2]
[408721664,1774170653833,-300.0,0.00042479,2]
[408721665,1774170653843,-300.0,0.00042479,2]
[408721666,1774170653852,-302.71758979,0.00042479,2]
[408721667,1774170653862,-300.0,0.00042479,2]
[408721668,1774170653871,-300.0,0.00042479,2]
[408721669,1774170653881,-520.90741423,0.00042479,2]
[408721670,1774170653891,-307.59307592,0.00042479,2]
[408721671,1774170653901,-300.0,0.00042479,2]
[408721672,1774170653911,-300.0,0.00042479,2]
[408721673,1774170653920,-300.0,0.00042479,2]
[408721674,1774170653929,-291.84739544,0.00042479,2]
[408721675,1774170654273,-125.26608633,0.00042479,2]
[408721676,1774170654283,-300.0,0.00042479,2]
[408721677,1774170654292,-300.0,0.00042479,2]
[408721678,1774170654301,-717.54642308,0.00042479,2]
[408721679,1774170654310,-300.0,0.00042479,2]
[408721680,1774170654319,-415.37890944,0.00042479,2]
[408721681,1774170654328,-1086.77526194,0.00042479,2]
[408721682,1774170654337,-300.0,0.00042479,2]
[408721683,1774170654346,-300.0,0.00042479,2]
[408721684,1774170654355,-300.0,0.00042479,2]
[408721685,1774170654365,-300.0,0.00042479,2]
[408721686,1774170654374,-300.0,0.00042479,2]
[408721687,1774170654384,-300.0,0.00042479,2]
[408721688,1774170654393,-300.0,0.00042479,2]
[408721689,1774170654402,-300.0,0.00042479,2]
[408721690,1774170654411,-300.0,0.00042479,2]
[408721691,1774170654420,-300.0,0.00042479,2]
[408721692,1774170654429,-300.0,0.00042479,2]
[408721693,1774170654438,-300.0,0.00042479,2]
[408721694,1774170654447,-300.0,0.00042479,2]
[408721695,1774170654457,-300.0,0.00042479,2]
[408721696,1774170654466,-301.000602,0.00042479,2]
[408721697,1774170654475,-300.0,0.00042479,2]
[408721698,1774170654484,-300.0,0.00042479,2]
[408721699,1774170654494,-600.11635329,0.00042479,2]
[408721700,1774170654503,-300.0,0.00042479,2]
[408721701,1774170654513,-300.0,0.00042479,2]
[408721702,1774170654522,-300.0,0.00042479,2]
[408721703,1774170654531,-300.0,0.00042479,2]
[408721704,1774170654540,-555.90105714,0.00042479,2]
[408721705,1774170654550,-300.0,0.00042479,2]
[408721706,1774170654559,-300.0,0.00042479,2]
[408721707,1774170654569,-300.0,0.00042479,120]
[408721708,1774170654578,-300.0,0.00042479,2]
[408721709,1774170654587,-1138.86212569,0.00042479,2]
[408721710,1774170654597,-307.35924896,0.00042479,2]
[408721711,1774170654607,-300.0,0.00042479,2]
[408721712,1774170654616,-858.24055709,0.00042479,2]
[408721713,1774170654626,-300.0,0.00042479,2]
[408721714,1774170654635,-300.0,0.00042479,2]
[408721715,1774170654644,-300.0,0.00042479,2]
[408721716,1774170654654,-300.0,0.00042479,2]
[408721717,1774170654663,-308.63412797,0.00042479,2]
[408721718,1774170654672,-300.0,0.00042479,2]
[408721719,1774170654681,-300.0,0.00042479,2]
[408721720,1774170654690,-300.0,0.00042479,2]
[408721721,1774170654699,-460.5100828,0.00042479,2]
[408721722,1774170654709,-300.0,0.00042479,2]
[408721723,1774170654718,-300.0,0.00042479,2]
[408721724,1774170654727,-300.0,0.00042479,2]
[408721725,1774170654737,-448.59580951,0.00042479,2]
[408721726,1774170654746,-198.74,0.00042546,120]
[408721727,1774170654756,-607.91,0.00042546,120]
[408721728,1774170654766,-524.37,0.00042546,120]
[408721729,1774170654775,-3514.0,0.00042564,2]
[408721730,1774170654784,-1044.0,0.00042564,2]
[408721731,1774170654793,-152.0,0.000426,120]
[408721732,1774170654802,-2500.0,0.0004274,14]
[408721733,1774170654811,-427.0,0.00042827,16]
[408721734,1774170654820,-908.46,0.00042854,2]
[408721735,1774170654830,-302.82,0.00042854,2]
[408721736,1774170654839,-294.217267,0.000429,24]
[408721737,1774170654848,-527.28,0.00042924,120]
[408721738,1774170654858,-414.26,0.0004299,90]
[408721739,1774170654867,-500.0,0.00043,45]
[408721740,1774170654876,-500.0,0.00043,45]
[408721741,1774170654886,-500.0,0.00043,45]
[408721742,1774170654895,-500.0,0.00043,45]
[408721743,1774170654904,-500.0,0.00043,45]
[408721744,1774170654913,-500.0,0.00043,45]
[408721745,1774170654922,-500.0,0.00043,45]
[408721746,1774170654931,-500.0,0.00043,45]
[408721747,1774170654940,-500.0,0.00043,45]
[408721748,1774170654950,-1461.03,0.00043,30]
[408721749,1774170654959,-57369.97,0.00043188,120]
[408721750,1774170654968,-527.28,0.00043198,120]
[408721751,1774170654977,-2418.74,0.000432,30]
[408721752,1774170654986,-250.0,0.00043217,94]
[408721753,1774170654996,-1093.0,0.00043277,30]
[408721754,1774170655005,-362.72905046,0.00043333,30]
[408721755,1774170655014,-509.0,0.0004346,120]
[408721756,1774170655023,-527.28,0.00043472,120]
[408721757,1774170655149,-500.0,0.000435,45]
[408721758,1774170655158,-500.0,0.000435,45]
[408721759,1774170655169,-500.0,0.000435,45]
[408721760,1774170655177,-500.0,0.000435,45]
[408721761,1774170655187,-500.0,0.000435,45]
[408721762,1774170655197,-500.0,0.000435,45]
[408721763,1774170655206,-500.0,0.000435,45]
[408721764,1774170655216,-500.0,0.000435,45]
[408721765,1774170655225,-500.0,0.000435,45]
[408721766,1774170655234,-786.03,0.000435,30]
[408721767,1774170655243,-188.4636242,0.0004356,30]
[408721768,1774170655252,-150.0,0.0004356,30]
[408721769,1774170655262,-29013.0,0.0004365,60]
[408721770,1774170655271,-527.28,0.00043746,120]
[408721771,1774170655279,-1439.32,0.00043775,2]
[408721772,1774170655288,-5800.0,0.00043819,14]
[408721773,1774170655297,-5800.0,0.00043828,14]
[408721774,1774170655307,-151.0,0.00043833,120]
[408721775,1774170655316,-311.100933,0.00043836,120]
[408721776,1774170655325,-311.100933,0.00043836,120]
[408721777,1774170655335,-151.0,0.00043836,120]
[408721778,1774170655344,-151.0,0.00043836,120]
[408721779,1774170655353,-311.100933,0.00043836,120]
[408721780,1774170655362,-203.331537,0.00043836,120]
[408721781,1774170655371,-151.0,0.00043836,120]
[408721782,1774170655381,-311.100933,0.00043836,120]
[408721783,1774170655390,-203.331537,0.00043836,120]
[408721784,1774170655400,-151.0,0.00043836,120]
[408721785,1774170655409,-203.331537,0.00043836,120]
[408721786,1774170655418,-203.331537,0.00043836,120]
[408721787,1774170655428,-151.0,0.00043836,120]
[408721788,1774170655437,-151.0,0.00043836,120]
[408721789,1774170655446,-224.049658,0.00043836,120]
[408721790,1774170655456,-151.0,0.00043836,120]
[408721791,1774170655465,-224.049658,0.00043836,120]
[408721792,1774170655475,-151.0,0.00043836,120]
[408721793,1774170655484,-224.049658,0.00043836,120]
[408721794,1774170655494,-151.0,0.00043836,120]
[408721795,1774170655503,-151.0,0.00043836,120]
[408721796,1774170655512,-224.049658,0.00043836,120]
[408721797,1774170655522,-151.0,0.00043836,120]
[408721798,1774170655531,-539.257806,0.00043836,120]
[408721799,1774170655541,-539.257806,0.00043836,120]
[408721800,1774170655550,-1036.723964,0.00043836,120]
[408721801,1774170655559,-539.257806,0.00043836,120]
[408721802,1774170655569,-1036.723964,0.00043836,120]
[408721803,1774170655578,-539.257806,0.00043836,120]
[408721804,1774170655587,-1036.723964,0.00043836,120]
[408721805,1774170655597,-1036.723964,0.00043836,120]
[408721806,1774170655606,-413.220467,0.00043836,120]
[408721807,1774170655615,-413.220467,0.00043836,120]
[408721808,1774170655624,-413.220467,0.00043836,120]
[408721809,1774170655634,-413.220467,0.00043836,120]